lending/lending_fUSD_20251125
["ID","MTS","AMOUNT","RATE_DAILY","PERIOD"]
[394887262,1764072632151,-209.16179144,0.000179,2]
[394887263,1764072632161,-500.0,0.00017973,2]
[394887264,1764072632171,-501.58261206,0.00017973,2]
[394887265,1764072632183,-507.50957658,0.00017973,2]
[394887266,1764072632192,-500.0,0.00017973,2]
[394887267,1764072632202,-506.01644165,0.00017973,2]
[394887268,1764072632211,-500.0,0.00017973,2]
[394887269,1764072632221,-500.0,0.00017973,2]
[394887270,1764072632231,-13083.5742873,0.00017977,2]
[394887271,1764072632241,-7906.3903356,0.00017977,2]
[394887272,1764072632250,-947.815074,0.0001798,2]
[394887273,1764072632261,-265.21320402,0.0001799,2]
[394887274,1764072632270,-205.20291826,0.00017999,2]
[394887275,1764072632280,-601.44928815,0.00017999,2]
[394887277,1764072632289,-3364.0,0.00018,2]
[394887279,1764072632299,-13872.37070395,0.00018,2]
[394887338,1764072639968,-372.34049029,0.00018,2]
[394887339,1764072639980,-393.66239999,0.00018,2]
[394887340,1764072639992,-1274.39309489,0.00018,2]
[394887341,1764072640003,-314.62880006,0.00018,2]
[394887348,1764072645867,-195.28942372,0.000179,2]
[394887349,1764072645876,-3059.46748283,0.00018,2]
[394887350,1764072646027,-2814.14026739,0.00018,2]
[394887356,1764072689301,-10000.01,0.00018,2]
[394887357,1764072689516,-10000.01,0.00018,2]
[394887358,1764072692239,-10000.01,0.00018,2]
[394887427,1764073153147,-166.66,0.0001663,2]
[394887428,1764073153174,-166.66,0.0001698,2]
[394887429,1764073153202,-1500.0,0.00017,2]
[394887430,1764073153230,-180.42895222,0.00017,2]
[394887431,1764073153256,-1582.84209556,0.00017244,2]
[394887432,1764073153553,-2806.82790444,0.00017244,2]
[394887433,1764073155973,-166.66,0.0001733,2]
[394887434,1764073156001,-333.26794386,0.00017519,2]
[394887435,1764073156030,-200.0,0.00017619,2]
[394887436,1764073156059,-1200.0,0.00017653,2]
[394887437,1764073156086,-300.0,0.00017653,2]
[394887438,1764073156114,-1880.427,0.00017654,2]
[394887439,1764073156142,-192.772,0.00017654,2]
[394887440,1764073156171,-166.66,0.0001768,2]
[394887441,1764073156198,-300.0,0.00017699,2]
[394887442,1764073156226,-220.43611228,0.00017699,2]
[394887443,1764073156376,-79.56388772,0.00017699,2]
[394887444,1764073159031,-4259.12596634,0.000177,2]
[394887445,1764073159055,-1481.75806732,0.000177,2]
[394887545,1764073519092,5282.58553768,9e-05,2]
[394887698,1764073685228,500.0,0.00014698,2]
[394887741,1764073832083,-500.0,0.00015999,2]
[394887742,1764073832092,-500.0,0.00015999,2]
[394887743,1764073832101,-500.0,0.00015999,2]
[394887744,1764073832111,-500.0,0.00015999,2]
[394887745,1764073832121,-7968.08112091,0.00016,4]
[394887746,1764073836908,-500.0,0.00015999,2]
[394887747,1764073836917,-500.0,0.00015999,2]
[394887748,1764073836926,-500.0,0.00015999,2]
[394887749,1764073836935,-500.0,0.00015999,2]
[394887750,1764073836944,-404.97034064,0.00015999,2]
[394887751,1764073836954,-16874.52577387,0.00016,4]
[394887752,1764073836963,-89393.35430388,0.00016,2]
[394887753,1764073836975,-21531.41484671,0.00016,2]
[394887754,1764073836986,-80991.37845791,0.00016,2]
[394887755,1764073836997,-8785.51317,0.00016,2]
[394887756,1764073837010,-3317.75206066,0.00016,2]
[394887767,1764073838186,-17966.21840492,0.00016,2]
[394887768,1764073838195,-3763.6034685,0.0001618,2]
[394887769,1764073838205,-1176.3477,0.000169,2]
[394887770,1764073838215,-610.0,0.00016928,2]
[394887771,1764073838225,-11466.48,0.00016928,2]
[394887772,1764073838234,-500.0,0.00016973,2]
[394887773,1764073838244,-500.0,0.00016973,2]
[394887774,1764073838255,-176.80880268,0.0001699,2]
[394887775,1764073838264,-421.01450171,0.00016999,2]
[394887776,1764073838273,-1047686.55109588,0.00017,2]
[394887777,1764073838283,-167.33,0.00017073,2]
[394887778,1764073838292,-4163.77782369,0.00017138,2]
[394887779,1764073838301,-25177.3865354,0.00017236,2]
[394887856,1764073840092,-26482.07988001,0.00017236,2]
[394887857,1764073840150,-494.02559461,0.00017236,2]
[394887858,1764073840162,-878.02925405,0.00017236,2]
[394887872,1764073844470,-30629.58873593,0.00017236,2]
[394887873,1764073844480,-1000.0,0.00017238,2]
[394887874,1764073844490,-166.54,0.00017315,2]
[394887875,1764073844500,-34102.0491,0.000177,2]
[394887876,1764073844514,-183.01656751,0.000177,2]
[394887877,1764073844524,-5166.79563033,0.000177,2]
[394887878,1764073844534,-151.0,0.000177,2]
[394887879,1764073844543,-1208.05,0.00017789,2]
[394887880,1764073844554,-2494.0,0.00017799,2]
[394887881,1764073844567,-1504.342,0.00017799,2]
[394887882,1764073844576,-192.772,0.00017799,2]
[394887884,1764073844587,-716.4746,0.000178,2]
[394887886,1764073844597,-2751.0,0.00017802,2]
[394887887,1764073844606,-531.48713,0.0001782,2]
[394887888,1764073844615,-2274.6407214,0.00017896,2]
[394887890,1764073844625,-500.0,0.00017899,2]
[394887891,1764073844635,-500.0,0.00017899,2]
[394887893,1764073844644,-500.0,0.00017899,2]
[394887894,1764073844653,-170.54211254,0.00017899,2]
[394887895,1764073844662,-500.0,0.00017899,2]
[394887896,1764073844672,-500.0,0.00017899,2]
[394887897,1764073844682,-500.0,0.00017899,2]
[394887898,1764073844692,-223.63639859,0.00017899,2]
[394887899,1764073844701,-23353.1967,0.000179,2]
[394887900,1764073844711,-603.2435,0.000179,2]
[394887901,1764073844720,-1614.80725137,0.000179,2]
[394887902,1764073844729,-3401.387711,0.00017901,2]
[394887903,1764073844738,-7853.9049489,0.00017918,2]
[394887904,1764073844748,-3216.9036109,0.00017918,2]
[394887905,1764073844757,-161.36222955,0.00017973,2]
[394887906,1764073844767,-159.96289996,0.00017973,2]
[394887907,1764073844776,-176.80880268,0.0001799,2]
[394887908,1764073844786,-500.0,0.00017999,2]
[394887909,1764073844795,-588.47923029,0.00017999,2]
[394887910,1764073844805,-500.0,0.00017999,2]
[394887911,1764073844814,-500.0,0.00017999,2]
[394887912,1764073844823,-647.2888879,0.00017999,2]
[394887913,1764073844833,-500.0,0.00017999,2]
[394887914,1764073844842,-500.0,0.00017999,2]
[394887915,1764073844852,-500.0,0.00017999,2]
[394887916,1764073844861,-500.0,0.00017999,2]
[394887917,1764073844871,-428.02188527,0.00017999,2]
[394887918,1764073844880,-500.0,0.00017999,2]
[394887919,1764073844890,-419.62809786,0.00017999,2]
[394887920,1764073844900,-462508.44820913,0.00018,2]
[394887921,1764073844910,-284936.89269507,0.00018,2]
[394887922,1764073846274,-5805.53239998,0.00018,2]
[394887923,1764073846299,-60443.47008908,0.00018,2]
[394887975,1764073885030,296.31603662,0.0001791,20]
[394888059,1764073978045,337.22,0.00013699,2]
[394888254,1764074645156,3239.4,8.014e-05,2]
[394888255,1764074645360,3239.4,8.436e-05,2]
[394888256,1764074645561,3183.99,8.857e-05,2]
[394888257,1764074645585,55.41,8.857e-05,2]
[394888259,1764074645767,3239.4,9.279e-05,2]
[394888260,1764074645973,2021.09316654,9.701e-05,2]
[394888261,1764074645995,1218.30683346,9.701e-05,2]
[394888262,1764074646184,3239.4,0.00010123,2]
[394888263,1764074646388,858.19633308,0.00010544,2]
[394888264,1764074646410,2381.20366692,0.00010544,2]
[394888265,1764074646607,2934.69949962,0.00010966,2]
[394888266,1764074646628,304.70050038,0.00010966,2]
[394888267,1764074646816,3239.4,0.00011388,2]
[394888268,1764074647003,1771.80266616,0.0001181,2]
[394888269,1764074647029,1467.59733384,0.0001181,2]
[394888270,1764074647227,3239.4,0.00012232,2]
[394888271,1764074647426,608.9058327,0.00012653,2]
[394888272,1764074647448,2630.4941673,0.00012653,2]
[394888273,1764074647636,2685.40899924,0.00013075,2]
[394888274,1764074647659,553.99100076,0.00013075,2]
[394888276,1764074647842,3239.4,0.00013497,2]
[394888277,1764074648525,1522.51216578,0.00013919,2]
[394888278,1764074648554,1716.88783422,0.00013919,2]
[394888285,1764074654861,-3239.4,0.0001434,2]
[394888474,1764074915244,318.328044,0.00014688,2]
[394888585,1764075032193,-3239.4,0.00014762,2]
[394888586,1764075032203,-289.19297102,0.00015084,2]
[394888587,1764075032213,-250.0,0.00015136,2]
[394888588,1764075032222,-3239.4,0.00015184,2]
[394888589,1764075032232,-1200.0,0.00015363,2]
[394888590,1764075032241,-1011.0,0.00015364,2]
[394888591,1764075032250,-300.0,0.00015364,2]
[394888592,1764075032260,-300.0,0.00015364,2]
[394888593,1764075032270,-300.0,0.00015364,2]
[394888594,1764075032279,-2455.02,0.00015365,2]
[394888595,1764075032289,-200.0,0.00015365,2]
[394888596,1764075032298,-289.192971,0.00015492,2]
[394888597,1764075032307,-179.009,0.00015582,2]
[394888598,1764075032317,-1856.033,0.00015582,2]
[394888599,1764075032326,-305.65481374,0.000156,2]
[394888600,1764075032335,-3239.4,0.00015606,2]
[394888601,1764075032345,-167.84,0.00015703,2]
[394888602,1764075032358,-221.49377174,0.00015773,2]
[394888603,1764075032367,-160.13949658,0.00015773,2]
[394888604,1764075032377,-300.0,0.00015799,2]
[394888605,1764075032386,-189.7136269,0.00015799,2]
[394888606,1764075032396,-241.06889963,0.00015799,2]
[394888607,1764075032405,-197.51413094,0.00015799,2]
[394888608,1764075032415,-500.0,0.00015799,2]
[394888609,1764075032424,-455.91084205,0.00015799,2]
[394888610,1764075032433,-161.17347557,0.00015799,2]
[394888611,1764075032443,-500.0,0.00015799,2]
[394888612,1764075032452,-500.0,0.00015799,2]
[394888613,1764075032462,-528.80153343,0.00015799,2]
[394888614,1764075032471,-500.0,0.00015799,2]
[394888615,1764075032481,-1000.0,0.000158,2]
[394888616,1764075032491,-11307.2283,0.000158,2]
[394888617,1764075032500,-5844.59607497,0.000158,2]
[394888619,1764075032512,-641.28142672,0.000158,2]
[394888621,1764075032523,-522.04790989,0.000158,2]
[394888624,1764075032538,-12243.68031021,0.000158,2]
[394888625,1764075032549,-1641.499992,0.000158,2]
[394888627,1764075032559,-899.86519061,0.000158,2]
[394888630,1764075032576,-7060.0,0.000158,2]
[394888632,1764075032586,-1195.98280455,0.000158,2]
[394888633,1764075032597,-293.08330495,0.000158,2]
[394888636,1764075032619,-864.08449454,0.000158,2]
[394888638,1764075032630,-318.10448703,0.000158,2]
[394888640,1764075032641,-418.24853192,0.000158,2]
[394888825,1764075038288,-5612.35109135,0.000158,2]
[394888826,1764075038299,-2739.27613519,0.000158,2]
[394888827,1764075038311,-7880.52960002,0.000158,2]
[394888828,1764075038321,-335.724,0.000158,2]
[394888829,1764075038332,-538392.34654605,0.000158,2]
[394888830,1764075038342,-235.1184,0.000158,2]
[394888832,1764075038351,-500.0,0.00015873,2]
[394888834,1764075038360,-160.96152401,0.00015873,2]
[394888836,1764075038370,-500.44416206,0.00015873,2]
[394888838,1764075038379,-500.87228972,0.00015873,2]
[394888840,1764075038388,-500.0,0.00015873,2]
[394888841,1764075038397,-169.06272754,0.00015873,2]
[394888843,1764075038407,-672.17,0.0001589,2]
[394888845,1764075038416,-151.0,0.0001589,2]
[394888847,1764075038426,-151.0,0.0001589,2]
[394888849,1764075038434,-151.0,0.0001589,2]
[394888851,1764075038447,-151.0,0.0001589,2]
[394888853,1764075038456,-151.0,0.0001589,2]
[394888854,1764075038466,-500.0,0.0001589,2]
[394888855,1764075038475,-151.0,0.0001589,2]
[394888856,1764075038484,-151.0,0.0001589,2]
[394888857,1764075038493,-151.0,0.0001589,2]
[394888858,1764075038503,-151.0,0.0001589,2]
[394888859,1764075038512,-151.0,0.0001589,2]
[394888860,1764075038521,-151.0,0.0001589,2]
[394888861,1764075038529,-151.0,0.0001589,2]
[394888862,1764075038538,-151.0,0.0001589,2]
[394888863,1764075038547,-203.69598117,0.0001589,2]
[394888864,1764075038556,-695.57971278,0.00015899,2]
[394888865,1764075038565,-500.0,0.00015899,2]
[394888866,1764075038575,-573.2310484,0.00015899,2]
[394888867,1764075038584,-500.0,0.00015899,2]
[394888868,1764075038593,-500.0,0.00015899,2]
[394888869,1764075038603,-500.0,0.00015899,2]
[394888870,1764075038612,-500.0,0.00015899,2]
[394888871,1764075038622,-289.192971,0.00015899,2]
[394888872,1764075038631,-500.0,0.00015899,2]
[394888873,1764075038644,-165.84487758,0.00015899,2]
[394888874,1764075038653,-6059.53235472,0.00015899,2]
[394888875,1764075038662,-500.0,0.00015899,2]
[394888876,1764075038672,-500.0,0.00015899,2]
[394888877,1764075038680,-191.0,0.00015909,2]
[394888878,1764075038690,-547.75274217,0.00015999,2]
[394888879,1764075038699,-198.46257169,0.00016027,2]
[394888880,1764075038708,-525.3111052,0.00016027,2]
[394888881,1764075038717,-3239.4,0.00016028,2]
[394888882,1764075038727,-1096.0,0.00016065,2]
[394888883,1764075038736,-3379.23,0.00016082,2]
[394888884,1764075038745,-672.17,0.00016164,2]
[394888885,1764075038755,-250.0,0.00016239,2]
[394888886,1764075038764,-195.0,0.00016239,2]
[394888887,1764075038773,-250.0,0.00016239,2]
[394888888,1764075038783,-321.65,0.00016248,2]
[394888889,1764075038792,-4037.55,0.00016399,2]
[394888890,1764075038801,-672.17,0.00016438,2]
[394888891,1764075038810,-150.0,0.00016476,2]
[394888892,1764075038819,-672.17,0.00016712,2]
[394888893,1764075038828,-300.0,0.00016715,2]
[394888894,1764075038840,-389.0,0.00016808,2]
[394888895,1764075038850,-420.0,0.00016808,2]
[394888896,1764075038860,-420.0,0.00016808,2]
[394888897,1764075038869,-1680.0,0.00016893,2]
[394888898,1764075038878,-1096.0,0.0001691,2]
[394888899,1764075038888,-510.0,0.00016921,2]
[394888900,1764075038897,-672.17,0.00016986,2]
[394888901,1764075038907,-721.12765535,0.0001702,2]
[394888902,1764075038916,-500.0,0.0001702,2]
[394888903,1764075038925,-500.0,0.0001702,2]
[394888904,1764075038934,-500.0,0.0001702,2]
[394888905,1764075038944,-500.0,0.0001702,2]
[394888906,1764075038953,-578.20924308,0.0001702,2]
[394888907,1764075038962,-500.0,0.0001702,2]
[394888908,1764075038971,-500.0,0.0001702,2]
[394888909,1764075038980,-500.0,0.0001702,2]
[394888910,1764075038990,-500.0,0.0001702,2]
[394888911,1764075039004,-500.0,0.0001702,2]
[394888912,1764075039013,-500.0,0.0001702,2]
[394888913,1764075039023,-500.0,0.0001702,2]
[394888914,1764075039033,-500.0,0.0001702,2]
[394888915,1764075039042,-435.44906543,0.0001702,2]
[394888916,1764075039051,-500.0,0.0001702,2]
[394888917,1764075039061,-500.0,0.0001702,2]
[394888918,1764075039073,-500.0,0.0001702,2]
[394888919,1764075039082,-500.0,0.0001702,2]
[394888920,1764075039092,-500.0,0.0001702,2]
[394888921,1764075039101,-500.0,0.0001702,2]
[394888922,1764075039110,-500.0,0.0001702,2]
[394888923,1764075039121,-500.0,0.0001702,2]
[394888924,1764075039130,-999.0,0.0001718,3]
[394888925,1764075039139,-500.0,0.00017235,2]
[394888926,1764075039149,-245.75646741,0.00017235,2]
[394888927,1764075039159,-672.18389816,0.0001726,2]
[394888928,1764075039168,-1500.0,0.000173,2]
[394888929,1764075039178,-1841.927,0.00017687,2]
[394888930,1764075039188,-1602.0,0.00017687,2]
[394888931,1764075039197,-823.0,0.00017687,2]
[394888932,1764075039207,-605.017,0.00017687,2]
[394888933,1764075039216,-561.0,0.00017687,2]
[394888934,1764075039234,-2715.0,0.00017687,2]
[394888935,1764075039245,-1096.0,0.000178,2]
[394888936,1764075039255,-470.5763,0.0001782,2]
[394888937,1764075039264,-210.46981464,0.000179,2]
[394888938,1764075039273,-150.0,0.000179,2]
[394888939,1764075039282,-154.47334927,0.000179,2]
[394888940,1764075039292,-150.0,0.000179,2]
[394888941,1764075039300,-1232.0,0.000179,2]
[394888942,1764075039310,-150.0,0.000179,2]
[394888943,1764075039319,-150.0,0.000179,2]
[394888944,1764075039329,-150.0,0.000179,2]
[394888945,1764075039338,-914.01672645,0.000179,2]
[394888946,1764075039347,-150.0,0.000179,2]
[394888947,1764075039357,-150.0,0.000179,2]
[394888948,1764075039366,-150.0,0.000179,2]
[394888949,1764075039376,-8745.4108363,0.00017954,2]
[394888950,1764075039385,-176.8088027,0.0001799,2]
[394888951,1764075039394,-1096.55753012,0.00017999,5]
[394888952,1764075039403,-293.69938487,0.00017999,5]
[394888953,1764075039412,-276.75564382,0.00017999,2]
[394888954,1764075039422,-152.19317623,0.00017999,5]
[394888955,1764075039431,-150.0,0.00017999,5]
[394888956,1764075039440,-150.0,0.00017999,5]
[394888957,1764075039449,-150.0,0.00017999,5]
[394888958,1764075039458,-150.0,0.00017999,5]
[394888959,1764075039467,-150.0,0.00017999,5]
[394888960,1764075039477,-2200.0,0.00018,2]
[394888961,1764075039486,-37755.09258373,0.00018,2]
[394888962,1764075040291,-439.54400344,0.00017687,2]
[394888963,1764075040455,-752.45599656,0.00017687,2]
[394888964,1764075040465,-31407.74034344,0.00018,2]
[394888965,1764075040478,-3898.12139962,0.00018,2]
[394889011,1764075043838,-701.688,0.00018,2]
[394889069,1764075046393,-257.2159997,0.00017175,2]
[394889070,1764075046405,-23.29624401,0.00017175,2]
[394889071,1764075046415,-355.823756,0.00018,2]
[394889072,1764075046427,-639.04745978,0.00018,2]
[394889073,1764075046500,-367.671375,0.00018,2]
[394889074,1764075046512,-824.59,0.00018,2]
[394889168,1764075193801,500.0,0.00014662,2]
[394889247,1764075821914,-198.33083023,0.00015484,2]
[394889248,1764075821941,-1484.827,0.00015484,2]
[394889249,1764075821968,-180.42895222,0.00015484,2]
[394889250,1764075821993,-685.4129,0.000156,2]
[394889251,1764075824833,-4546.43088077,0.000157,2]
[394889252,1764075828100,-907.14823846,0.000157,2]
[394889253,1764075828129,-4021.93569939,0.000157,2]
[394889254,1764075837271,-141.8421243,0.000157,2]
[394889255,1764075837299,-165.84487758,0.000157,2]
[394889256,1764075837327,-160.13949654,0.000157,2]
[394889257,1764075837354,-553.38600192,0.000157,2]
[394889258,1764075837384,-633.01,0.00015799,2]
[394889259,1764075837416,-500.0,0.00015799,2]
[394889260,1764075837448,-500.0,0.00015799,2]
[394889261,1764075837477,-500.0,0.00015799,2]
[394889262,1764075837508,-500.0,0.00015799,2]
[394889263,1764075837539,-500.0,0.00015799,2]
[394889264,1764075837570,-500.0,0.00015799,2]
[394889265,1764075837601,-191.56499932,0.00015799,2]
[394889266,1764075846472,-308.43500068,0.00015799,2]
[394889267,1764075846503,-500.0,0.00015799,2]
[394889268,1764075846533,-484.57586219,0.00015799,2]
[394889269,1764075846563,-500.0,0.00015799,2]
[394889270,1764075846596,-500.0,0.00015799,2]
[394889271,1764075846626,-500.0,0.00015799,2]
[394889272,1764075846657,-500.0,0.00015799,2]
[394889273,1764075849827,-3114.89155824,0.000158,2]
[394889274,1764075849940,-10000.01,0.000158,2]
[394889275,1764075852640,-10000.01,0.000158,2]
[394889276,1764075862105,-10000.01,0.000158,2]
[394889277,1764075862330,-10000.01,0.000158,2]
[394889278,1764075868342,-10000.01,0.000158,2]
[394889279,1764075868370,-10000.01,0.000158,2]
[394889292,1764075908386,433.525701,7.945e-05,2]
[394889303,1764076231351,-500.0,0.00015384,2]
[394889304,1764076231361,-1200.0,0.00015699,2]
[394889305,1764076231371,-300.0,0.00015699,2]
[394889307,1764076231381,-300.0,0.00015699,2]
[394889308,1764076231390,-1109.42980313,0.00015699,2]
[394889309,1764076231401,-90.57019687,0.00015699,2]
[394889310,1764076231411,-300.0,0.00015699,2]
[394889311,1764076231421,-987.36221732,0.000157,2]
[394889312,1764076231433,-5517.3265029,0.000157,2]
[394889313,1764076231444,-784.35150967,0.000157,2]
[394889314,1764076231456,-2415.50793692,0.000157,2]
[394889315,1764076231468,-295.46183319,0.000157,2]
[394889316,1764076231482,-193.9384959,0.000157,2]
[394889317,1764076231493,-394.45008645,0.000157,2]
[394889318,1764076231503,-286.96095259,0.000157,2]
[394889319,1764076231515,-665.86849656,0.000157,2]
[394889320,1764076231526,-2907.32963402,0.000157,2]
[394889321,1764076231537,-989.67518976,0.000157,2]
[394889322,1764076231546,-164.18412187,0.000157,2]
[394889323,1764076231556,-12785.8624,0.000157,2]
[394889324,1764076231565,-200.0,0.00015721,2]
[394889325,1764076231575,-166.66,0.00015784,2]
[394889327,1764076231584,-500.0,0.00015799,2]
[394889329,1764076231594,-245.75646741,0.00015799,2]
[394889331,1764076231604,-1000.0,0.000158,2]
[394889333,1764076231613,-3102.58073446,0.00016041,2]
[394889334,1764076231624,-166.66,0.00016116,2]
[394889335,1764076231634,-2751.0,0.00016366,2]
[394889337,1764076231644,-1390.73,0.00016438,2]
[394889338,1764076231653,-3703.68,0.00016438,2]
[394889339,1764076231662,-166.66,0.00016449,2]
[394889340,1764076231674,-240.0,0.00016656,2]
[394889341,1764076231687,-166.66,0.00016781,2]
[394889342,1764076231698,-1096.0,0.00016857,2]
[394889343,1764076231708,-150.0,0.00016952,2]
[394889344,1764076231717,-1500.0,0.00017,2]
[394889345,1764076231728,-578.20924308,0.00017099,2]
[394889346,1764076231737,-166.66,0.00017113,2]
[394889347,1764076231747,-1346.0,0.00017169,2]
[394889348,1764076231758,-420.0,0.00017169,2]
[394889349,1764076231768,-1680.0,0.00017256,2]
[394889350,1764076231778,-245.28,0.0001726,2]
[394889351,1764076231788,-213.88483058,0.00017332,2]
[394889352,1764076231798,-576.66,0.00017352,2]
[394889353,1764076231809,-166.66,0.00017446,2]
[394889354,1764076231820,-2715.0,0.00017467,2]
[394889355,1764076231830,-561.0,0.00017467,2]
[394889356,1764076231840,-1841.927,0.00017687,2]
[394889357,1764076231850,-1602.0,0.00017687,2]
[394889358,1764076231860,-823.0,0.00017687,2]
[394889359,1764076231872,-605.017,0.00017687,2]
[394889360,1764076231882,-5514.79,0.00017728,2]
[394889361,1764076231892,-150.99,0.00017728,2]
[394889362,1764076231903,-150.99,0.00017728,2]
[394889363,1764076231912,-4866.76,0.00017728,2]
[394889364,1764076231922,-1190.18,0.00017728,2]
[394889365,1764076231932,-9999.99,0.00017728,2]
[394889366,1764076231942,-1525.43,0.00017728,2]
[394889367,1764076231952,-299.99,0.00017728,4]
[394889368,1764076231962,-999.99,0.00017728,2]
[394889369,1764076231971,-9999.99,0.00017728,2]
[394889370,1764076231980,-2207.03,0.00017728,2]
[394889371,1764076231990,-1096.0,0.00017744,2]
[394889372,1764076231999,-4261.44668616,0.00017889,2]
[394889373,1764076232009,-270.63735858,0.000179,2]
[394889374,1764076232018,-914.01672645,0.000179,2]
[394889375,1764076232029,-1096.55753012,0.00017929,5]
[394889376,1764076232039,-25711.57415543,0.0001793,2]
[394889377,1764076232050,-6601.67330137,0.0001793,2]
[394889378,1764076232060,-661.4199089,0.0001793,2]
[394889379,1764076232069,-2386.7732876,0.0001793,2]
[394889380,1764076232078,-293.69938487,0.00017989,2]
[394889381,1764076232087,-276.75564382,0.00017989,2]
[394889382,1764076232096,-152.19317623,0.00017989,2]
[394889383,1764076232106,-150.0,0.00017989,2]
[394889384,1764076232118,-150.0,0.00017989,2]
[394889385,1764076232135,-150.0,0.00017989,2]
[394889386,1764076232144,-150.0,0.00017989,2]
[394889387,1764076232153,-150.0,0.00017989,2]
[394889388,1764076232162,-224.06,0.00017989,2]
[394889389,1764076232171,-150.0,0.00017989,2]
[394889390,1764076232181,-150.0,0.00017989,2]
[394889391,1764076232190,-150.0,0.00017989,2]
[394889392,1764076232200,-150.0,0.00017989,2]
[394889393,1764076232209,-154.47334927,0.00017989,2]
[394889394,1764076232218,-150.0,0.00017989,2]
[394889395,1764076232228,-1232.0,0.00017989,2]
[394889396,1764076232238,-150.0,0.00017989,2]
[394889397,1764076232247,-150.0,0.00017989,2]
[394889398,1764076232257,-150.0,0.00017989,2]
[394889399,1764076232267,-500.0,0.00017989,2]
[394889400,1764076232276,-500.0,0.00017989,2]
[394889401,1764076232286,-250.0,0.00017989,2]
[394889402,1764076232295,-500.0,0.00017989,2]
[394889403,1764076232303,-721.12765535,0.00017989,2]
[394889404,1764076232312,-264.94161149,0.00017989,2]
[394889405,1764076232508,-214.09764074,0.00017989,2]
[394889406,1764076232521,-285.90235926,0.00017989,2]
[394889407,1764076232531,-500.0,0.00017989,2]
[394889408,1764076232541,-435.44906543,0.00017989,2]
[394889409,1764076232550,-250.0,0.00017989,2]
[394889410,1764076232560,-250.0,0.00017989,2]
[394889411,1764076232569,-250.0,0.00017989,2]
[394889412,1764076232578,-250.0,0.00017989,2]
[394889413,1764076232588,-250.0,0.00017989,2]
[394889414,1764076232597,-250.0,0.00017989,2]
[394889415,1764076232606,-500.0,0.00017989,2]
[394889416,1764076232615,-250.0,0.00017989,2]
[394889417,1764076232625,-500.0,0.00017989,2]
[394889418,1764076232635,-500.0,0.00017989,2]
[394889419,1764076232644,-500.0,0.00017989,2]
[394889420,1764076232653,-250.0,0.00017989,2]
[394889421,1764076232663,-500.0,0.00017989,2]
[394889422,1764076232672,-250.0,0.00017989,2]
[394889423,1764076232682,-500.0,0.00017989,2]
[394889424,1764076232695,-500.0,0.00017989,2]
[394889425,1764076232704,-500.0,0.00017989,2]
[394889426,1764076232714,-500.0,0.00017989,2]
[394889427,1764076232723,-500.0,0.00017989,2]
[394889428,1764076232733,-500.0,0.00017989,2]
[394889429,1764076232742,-500.0,0.00017989,2]
[394889430,1764076232751,-500.0,0.00017989,2]
[394889431,1764076232760,-500.0,0.00017989,2]
[394889432,1764076232770,-500.0,0.00017989,2]
[394889433,1764076232779,-500.0,0.00017989,2]
[394889434,1764076232789,-500.0,0.00017989,2]
[394889435,1764076232798,-500.0,0.00017989,2]
[394889436,1764076232808,-500.0,0.00017989,2]
[394889437,1764076232817,-500.0,0.00017989,2]
[394889438,1764076232827,-500.0,0.00017989,2]